fUST/lending_fUST_20250707
["ID","MTS","AMOUNT","RATE_DAILY","PERIOD"]
[370020928,1751837447432,-151.0,0.00017731,2]
[370020929,1751837447442,-8104.47381739,0.00017737,2]
[370020930,1751837447452,-500.0,0.00017831,2]
[370020931,1751837447462,-151.0,0.00017832,2]
[370020932,1751837447471,-151.0,0.00017832,2]
[370020933,1751837447481,-604.05472,0.00017832,2]
[370020934,1751837447490,-604.05472,0.00017832,2]
[370020935,1751837447499,-12582.33653824,0.00017887,2]
[370020936,1751837447509,-160.0,0.00017887,2]
[370020937,1751837447520,-848.15551661,0.00017887,2]
[370020938,1751837447530,-215.18120504,0.00017887,2]
[370020939,1751837447540,-160.0,0.00017887,2]
[370020940,1751837447549,-214.03875559,0.00017887,2]
[370020941,1751837447559,-837.69501035,0.00017887,2]
[370020942,1751837447568,-160.0,0.00017887,2]
[370020943,1751837447578,-230.45878613,0.00017887,2]
[370020944,1751837447588,-160.0,0.00017887,2]
[370020945,1751837447600,-160.0,0.00017888,2]
[370020946,1751837447610,-524.94624002,0.00017888,2]
[370020947,1751837447619,-160.0,0.00017888,2]
[370020948,1751837447629,-160.0,0.00017888,2]
[370020949,1751837447638,-160.0,0.00017888,2]
[370020950,1751837447648,-151.0,0.000179,2]
[370020951,1751837447658,-814.03,0.00017933,2]
[370020952,1751837447667,-1103.34,0.00017934,2]
[370020953,1751837447677,-1231.84,0.00017934,2]
[370020954,1751837447686,-560.53,0.00017934,2]
[370020955,1751837447696,-1125.19,0.00017934,2]
[370020956,1751837447705,-821.9,0.00017934,2]
[370020957,1751837447715,-1326.05,0.00017934,2]
[370020958,1751837447725,-808.73,0.00017934,2]
[370020959,1751837447735,-460.0,0.00017934,2]
[370020960,1751837447744,-460.0,0.00017934,2]
[370020961,1751837447754,-741.42,0.00017934,2]
[370020962,1751837447764,-251.27,0.00017934,2]
[370020963,1751837447774,-187.82,0.00017934,2]
[370020964,1751837447784,-460.0,0.00017935,2]
[370020965,1751837447793,-216.51,0.00017935,2]
[370020966,1751837447803,-971.89,0.00017935,2]
[370020967,1751837447812,-460.0,0.00017935,2]
[370020968,1751837447823,-1323.23,0.00017935,2]
[370020969,1751837447833,-460.0,0.00017935,2]
[370020970,1751837447842,-460.0,0.00017935,2]
[370020971,1751837447855,-460.0,0.00017936,2]
[370020972,1751837447865,-294.41,0.00017936,2]
[370020973,1751837447875,-460.0,0.00017936,2]
[370020974,1751837447885,-151.0,0.00017936,2]
[370020975,1751837447895,-151.0,0.00017936,2]
[370020976,1751837447904,-151.0,0.00017936,2]
[370020977,1751837447915,-540.955948,0.00017936,2]
[370020978,1751837447926,-540.955948,0.00017936,2]
[370020979,1751837447937,-201.220787,0.00017936,2]
[370020980,1751837447950,-201.220787,0.00017936,2]
[370020981,1751837447960,-151.0,0.00017936,2]
[370020982,1751837447970,-151.0,0.00017936,2]
[370020983,1751837447980,-151.0,0.00017936,2]
[370020984,1751837447990,-460.0,0.00017936,2]
[370020985,1751837447999,-372.54104,0.00017936,2]
[370020986,1751837448009,-372.54104,0.00017936,2]
[370020987,1751837448018,-460.0,0.00017936,2]
[370020988,1751837448027,-151.0,0.00017936,2]
[370020989,1751837448037,-245.07383,0.00017936,2]
[370020990,1751837448046,-245.07383,0.00017936,2]
[370020991,1751837448055,-460.0,0.00017936,2]
[370020992,1751837448065,-1339.21,0.00017936,2]
[370020993,1751837448074,-460.0,0.00017936,2]
[370020994,1751837448083,-500.0,0.00017936,2]
[370020995,1751837448093,-460.0,0.00017936,2]
[370020996,1751837448104,-1901.18,0.00017936,2]
[370020997,1751837448113,-460.0,0.00017936,2]
[370020998,1751837448123,-460.0,0.00017936,2]
[370020999,1751837448132,-476.37,0.00017936,2]
[370021000,1751837448141,-2242.92,0.00017936,2]
[370021001,1751837448151,-511.85,0.00017936,2]
[370021002,1751837448161,-604.16,0.00017936,2]
[370021003,1751837448170,-460.0,0.00017936,2]
[370021004,1751837448180,-727.43,0.00017936,2]
[370021005,1751837448195,-504.8074354,0.00017936,2]
[370021006,1751837448204,-151.0,0.00017993,2]
[370021007,1751837448214,-151.0,0.00017993,2]
[370021008,1751837448224,-151.0,0.00017993,2]
[370021009,1751837448234,-151.0,0.00017993,2]
[370021010,1751837448244,-151.0,0.00017993,2]
[370021011,1751837448254,-325.740152,0.00017993,2]
[370021012,1751837448263,-325.740152,0.00017993,2]
[370021013,1751837448273,-60147.17827991,0.00018,2]
[370021014,1751837448284,-9479.00566272,0.00018,2]
[370021015,1751837448293,-31988.18058217,0.00018,2]
[370021016,1751837448304,-12438.46890546,0.00018,2]
[370021017,1751837448314,-5099.20161548,0.00018,2]
[370021018,1751837448325,-151.27645238,0.00018,2]
[370021019,1751837448334,-151.0,0.00018,2]
[370021021,1751837448344,-151.0,0.00018,2]
[370021022,1751837448357,-151.0,0.00018,2]
[370021023,1751837448367,-151.0,0.00018,2]
[370021024,1751837448377,-151.0,0.00018,2]
[370021025,1751837448387,-307.441626,0.00018,2]
[370021026,1751837448398,-307.441626,0.00018,2]
[370021027,1751837448408,-151.0,0.00018,2]
[370021028,1751837448418,-281.676206,0.00018,2]
[370021029,1751837448428,-1000.0,0.00018004,2]
[370021030,1751837448438,-3771.1048351,0.00018082,2]
[370021031,1751837448448,-352.81455497,0.00018099,2]
[370021032,1751837448458,-7718.2999972,0.000181,2]
[370021033,1751837448467,-7718.2999971,0.00018176,2]
[370021034,1751837448477,-814.03,0.00018207,2]
[370021035,1751837448487,-1103.34,0.00018208,2]
[370021036,1751837448497,-1231.84,0.00018208,2]
[370021037,1751837448507,-1125.19,0.00018208,2]
[370021038,1751837448517,-821.9,0.00018208,2]
[370021039,1751837448527,-1326.05,0.00018208,2]
[370021040,1751837448537,-151.0,0.00018208,2]
[370021041,1751837448548,-151.0,0.00018208,2]
[370021042,1751837448559,-808.73,0.00018208,2]
[370021043,1751837448570,-151.0,0.00018208,2]
[370021044,1751837448581,-240.712625,0.00018208,2]
[370021045,1751837448593,-151.0,0.00018208,2]
[370021046,1751837448607,-163.78515762,0.00018208,2]
[370021047,1751837448618,-460.0,0.00018208,2]
[370021048,1751837448628,-741.42,0.00018208,2]
[370021049,1751837448639,-216.294196,0.00018209,2]
[370021050,1751837448648,-216.294196,0.00018209,2]
[370021051,1751837448659,-151.0,0.00018209,2]
[370021052,1751837448669,-460.0,0.00018209,2]
[370021053,1751837448680,-971.89,0.00018209,2]
[370021054,1751837448691,-460.0,0.00018209,2]
[370021055,1751837448702,-1323.23,0.00018209,2]
[370021056,1751837448713,-460.0,0.00018209,2]
[370021057,1751837448723,-460.0,0.00018209,2]
[370021058,1751837448734,-460.0,0.0001821,2]
[370021059,1751837448743,-460.0,0.0001821,2]
[370021060,1751837448753,-460.0,0.0001821,2]
[370021061,1751837448763,-460.0,0.0001821,2]
[370021062,1751837448775,-460.0,0.0001821,2]
[370021063,1751837448785,-1339.21,0.0001821,2]
[370021064,1751837448797,-460.0,0.0001821,2]
[370021065,1751837448806,-460.0,0.0001821,2]
[370021066,1751837448816,-1901.18,0.0001821,2]
[370021067,1751837448828,-460.0,0.0001821,2]
[370021068,1751837448838,-460.0,0.0001821,2]
[370021069,1751837448850,-476.37,0.0001821,2]
[370021070,1751837448860,-2242.92,0.0001821,2]
[370021071,1751837448869,-511.85,0.0001821,2]
[370021072,1751837448879,-604.16,0.0001821,2]
[370021073,1751837448889,-460.0,0.0001821,2]
[370021074,1751837448899,-727.43,0.0001821,2]
[370021075,1751837448908,-151.0,0.00018211,2]
[370021076,1751837448918,-151.0,0.00018211,2]
[370021077,1751837448928,-151.0,0.00018286,2]
[370021078,1751837448938,-151.0,0.00018286,2]
[370021079,1751837448948,-151.0,0.00018286,2]
[370021080,1751837448957,-5198.18057753,0.00018287,2]
[370021081,1751837448967,-151.0,0.00018287,2]
[370021082,1751837448977,-207.4,0.00018287,2]
[370021084,1751837448987,-151.0,0.00018287,2]
[370021085,1751837448998,-151.0,0.00018287,2]
[370021086,1751837449007,-690.642,0.00018287,2]
[370021087,1751837449018,-5000.0,0.00018287,2]
[370021088,1751837449027,-151.0,0.00018287,2]
[370021089,1751837449037,-151.0,0.00018287,2]
[370021090,1751837449046,-151.0,0.00018287,2]
[370021091,1751837449056,-151.0,0.00018287,2]
[370021092,1751837449066,-151.0,0.00018287,2]
[370021093,1751837449075,-151.0,0.00018287,2]
[370021094,1751837449084,-151.0,0.00018287,2]
[370021095,1751837449094,-151.0,0.00018287,2]
[370021096,1751837449106,-151.0,0.00018287,2]
[370021097,1751837449116,-151.0,0.00018287,2]
[370021098,1751837449126,-1200.0,0.00018287,2]
[370021099,1751837449136,-151.0,0.00018287,2]
[370021100,1751837449145,-151.0,0.00018287,2]
[370021101,1751837449155,-151.0,0.00018287,2]
[370021102,1751837449164,-500.0,0.00018287,2]
[370021103,1751837449173,-151.0,0.00018287,2]
[370021104,1751837449183,-215.10867815,0.00018287,2]
[370021105,1751837449198,-1200.0,0.00018287,2]
[370021106,1751837449208,-1200.0,0.00018287,2]
[370021107,1751837449217,-1200.0,0.00018287,2]
[370021108,1751837449227,-1200.0,0.00018287,2]
[370021109,1751837449239,-641.67646439,0.00018287,2]
[370021110,1751837449249,-3525.85516033,0.00018287,2]
[370021111,1751837449259,-3000.0,0.00018287,2]
[370021112,1751837449270,-3000.0,0.00018287,2]
[370021113,1751837449280,-3000.0,0.00018287,2]
[370021114,1751837449290,-3000.0,0.00018287,2]
[370021115,1751837449299,-151.0,0.00018287,2]
[370021116,1751837449309,-1929.45789665,0.00018287,2]
[370021117,1751837449319,-151.0,0.00018287,2]
[370021118,1751837449328,-25000.0,0.00018287,2]
[370021119,1751837449338,-3325.38383853,0.00018287,2]
[370021120,1751837449350,-151.0,0.00018287,2]
[370021121,1751837449360,-151.0,0.00018287,2]
[370021122,1751837449370,-151.0,0.00018287,2]
[370021123,1751837449380,-151.0,0.00018287,2]
[370021124,1751837449389,-300.611582,0.00018287,2]
[370021125,1751837449531,-325.740152,0.00018287,2]
[370021126,1751837449542,-325.740152,0.00018287,2]
[370021128,1751837449551,-151.0,0.00018287,2]
[370021129,1751837449561,-151.0,0.00018287,2]
[370021130,1751837449570,-296.56939,0.00018287,2]
[370021131,1751837449580,-540.955948,0.00018287,2]
[370021132,1751837449590,-540.955948,0.00018287,2]
[370021133,1751837449600,-151.0,0.00018287,2]
[370021134,1751837449609,-201.220787,0.00018287,2]
[370021135,1751837449619,-201.220787,0.00018287,2]
[370021136,1751837449628,-151.0,0.00018287,2]
[370021137,1751837449637,-151.0,0.00018287,2]
[370021138,1751837449647,-151.0,0.00018287,2]
[370021139,1751837449658,-372.54104,0.00018287,2]
[370021140,1751837449669,-372.54104,0.00018287,2]
[370021141,1751837449680,-151.0,0.00018287,2]
[370021142,1751837449689,-245.07383,0.00018287,2]
[370021143,1751837449699,-245.07383,0.00018287,2]
[370021144,1751837449709,-604.05472,0.00018287,2]
[370021145,1751837449718,-604.05472,0.00018287,2]
[370021146,1751837449728,-151.0,0.00018287,2]
[370021147,1751837449738,-161.296516,0.00018287,2]
[370021148,1751837449747,-151.0,0.00018287,2]
[370021149,1751837449757,-151.0,0.00018287,2]
[370021150,1751837449766,-307.441626,0.00018287,2]
[370021151,1751837449776,-307.441626,0.00018287,2]
[370021152,1751837449786,-716.195754,0.00018342,2]
[370021153,1751837449795,-192.5,0.00018344,2]
[370021154,1751837449804,-151.0,0.00018352,2]
[370021155,1751837449814,-151.0,0.00018352,2]
[370021156,1751837449824,-420.0,0.00018392,2]
[370021157,1751837449833,-742.6949969,0.00018397,2]
[370021158,1751837449842,-192.5,0.00018428,2]
[370021159,1751837449854,-7718.2999971,0.00018452,2]
[370021160,1751837449864,-770.17471178,0.00018452,2]
[370021161,1751837449873,-814.03,0.00018481,2]
[370021162,1751837449882,-1103.34,0.00018482,2]
[370021163,1751837449892,-1231.84,0.00018482,2]
[370021164,1751837449902,-1125.19,0.00018482,2]
[370021165,1751837449912,-821.9,0.00018482,2]
[370021166,1751837449921,-1326.05,0.00018482,2]
[370021167,1751837449931,-151.0,0.00018482,2]
[370021168,1751837449941,-808.73,0.00018482,2]
[370021169,1751837449951,-151.0,0.00018482,2]
[370021170,1751837449961,-151.0,0.00018482,2]
[370021171,1751837449971,-460.0,0.00018482,2]
[370021172,1751837449981,-741.42,0.00018482,2]
[370021173,1751837449990,-151.0,0.00018483,2]
[370021174,1751837450000,-151.0,0.00018483,2]
[370021175,1751837450010,-151.0,0.00018483,2]
[370021176,1751837450020,-151.0,0.00018483,2]
[370021177,1751837450029,-151.0,0.00018483,2]
[370021178,1751837450038,-151.0,0.00018483,2]
[370021179,1751837450048,-216.294196,0.00018483,2]
[370021180,1751837450058,-216.294196,0.00018483,2]
[370021181,1751837450067,-151.0,0.00018483,2]
[370021182,1751837450077,-460.0,0.00018483,2]
[370021183,1751837450087,-971.89,0.00018483,2]
[370021184,1751837450097,-460.0,0.00018483,2]
[370021185,1751837450110,-1323.23,0.00018483,2]
[370021186,1751837450120,-460.0,0.00018483,2]
[370021187,1751837450130,-377.24716146,0.00018483,2]
[370021188,1751837450139,-1680.0,0.00018483,2]
[370021189,1751837450148,-460.0,0.00018484,2]
[370021190,1751837450158,-460.0,0.00018484,2]
[370021191,1751837450167,-460.0,0.00018484,2]
[370021192,1751837450177,-252.30618639,0.00018484,2]
[370021194,1751837450190,-460.0,0.00018484,2]
[370021195,1751837450200,-1339.21,0.00018484,2]
[370021196,1751837450211,-460.0,0.00018484,2]
[370021197,1751837450220,-460.0,0.00018484,2]
[370021198,1751837450231,-1901.18,0.00018484,2]
[370021199,1751837450240,-460.0,0.00018484,2]
[370021200,1751837450250,-460.0,0.00018484,2]
[370021201,1751837450261,-476.37,0.00018484,2]
[370021202,1751837450271,-2242.92,0.00018484,2]
[370021203,1751837450284,-511.85,0.00018484,2]
[370021204,1751837450293,-604.16,0.00018484,2]
[370021205,1751837450303,-460.0,0.00018484,2]
[370021206,1751837450313,-151.0,0.00018484,2]
[370021207,1751837450323,-727.43,0.00018484,2]
[370021208,1751837450333,-151.0,0.00018484,2]
[370021209,1751837450343,-798.67117612,0.00018507,2]
[370021210,1751837450355,-192.5,0.00018512,2]
[370021211,1751837450364,-3250.86807655,0.00018522,2]
[370021212,1751837450374,-500.0,0.00018552,2]
[370021213,1751837450383,-828.22200964,0.00018562,2]
[370021214,1751837450393,-192.5,0.00018596,2]
[370021215,1751837450402,-858.86622399,0.00018617,2]
[370021216,1751837450411,-151.0,0.00018617,2]
[370021217,1751837450421,-168.645758,0.00018617,2]
[370021218,1751837450430,-283.23736729,0.00018672,2]
[370021219,1751837450440,-192.5,0.0001868,2]
[370021220,1751837450449,-19499.92961924,0.00018727,2]
[370021221,1751837450459,-7718.2999971,0.00018728,2]
[370021222,1751837450468,-229.353285,0.00018728,2]
[370021223,1751837450477,-229.353285,0.00018728,2]
[370021224,1751837450487,-151.0,0.00018728,2]
[370021225,1751837450496,-604.05472,0.00018728,2]
[370021226,1751837450506,-604.05472,0.00018728,2]
[370021227,1751837450515,-814.03,0.00018755,2]
[370021228,1751837450525,-1103.34,0.00018756,2]
[370021229,1751837450535,-1231.84,0.00018756,2]
[370021230,1751837450544,-1125.19,0.00018756,2]
[370021231,1751837450554,-821.9,0.00018756,2]
[370021232,1751837450563,-1326.05,0.00018756,2]
[370021233,1751837450572,-808.73,0.00018756,2]
[370021234,1751837450582,-460.0,0.00018756,2]
[370021235,1751837450591,-741.42,0.00018756,2]
[370021236,1751837450601,-201.220787,0.00018757,2]
[370021237,1751837450610,-201.220787,0.00018757,2]
[370021238,1751837450620,-372.54104,0.00018757,2]
[370021239,1751837450630,-372.54104,0.00018757,2]
[370021240,1751837450639,-151.0,0.00018757,2]
[370021241,1751837450649,-245.07383,0.00018757,2]
[370021242,1751837450659,-245.07383,0.00018757,2]
[370021243,1751837450669,-460.0,0.00018757,2]
[370021244,1751837450678,-971.89,0.00018757,2]
[370021245,1751837450688,-282.88,0.00018757,2]
[370021246,1751837450697,-1323.23,0.00018757,2]
[370021247,1751837450707,-460.0,0.00018757,2]
[370021248,1751837450717,-151.0,0.00018758,2]
[370021249,1751837450726,-184.672792,0.00018758,2]
[370021250,1751837450737,-460.0,0.00018758,2]
[370021251,1751837450746,-460.0,0.00018758,2]
[370021252,1751837450756,-460.0,0.00018758,2]
[370021253,1751837450765,-460.0,0.00018758,2]
[370021254,1751837450775,-1339.21,0.00018758,2]
[370021255,1751837450784,-460.0,0.00018758,2]
[370021256,1751837450793,-598.68499413,0.00018758,2]
[370021257,1751837450803,-1901.18,0.00018758,2]
[370021258,1751837450813,-460.0,0.00018758,2]
[370021259,1751837450823,-460.0,0.00018758,2]
[370021260,1751837450832,-476.37,0.00018758,2]
[370021261,1751837450842,-2242.92,0.00018758,2]
[370021262,1751837450851,-511.85,0.00018758,2]
[370021263,1751837450861,-604.16,0.00018758,2]
[370021264,1751837450872,-460.0,0.00018758,2]
[370021265,1751837450882,-727.43,0.00018758,2]
[370021266,1751837450891,-151.0,0.00018759,2]
[370021268,1751837450900,-540.955948,0.00018759,2]
[370021269,1751837450910,-540.955948,0.00018759,2]
[370021270,1751837450920,-151.0,0.00018759,2]
[370021271,1751837450929,-151.0,0.00018759,2]
[370021272,1751837450939,-192.5,0.00018764,2]
[370021273,1751837450948,-151.0,0.000188,2]
[370021274,1751837450958,-2600.73563526,0.00018813,2]
[370021276,1751837450967,-688.06286054,0.00018822,2]
[370021277,1751837450977,-5000.0,0.00018835,2]
[370021278,1751837450986,-25000.0,0.00018835,2]
[370021279,1751837450995,-151.0,0.00018835,2]
[370021280,1751837451005,-151.0,0.00018835,2]
[370021281,1751837451014,-151.0,0.00018835,2]
[370021282,1751837451024,-151.0,0.00018835,2]
[370021283,1751837451033,-325.740152,0.00018835,2]
[370021284,1751837451043,-325.740152,0.00018835,2]
[370021285,1751837451052,-151.0,0.00018835,2]
[370021286,1751837451061,-151.0,0.00018835,2]
[370021287,1751837451071,-151.0,0.00018835,2]
[370021288,1751837451081,-151.0,0.00018835,2]
[370021289,1751837451090,-307.441626,0.00018835,2]
[370021290,1751837451101,-307.441626,0.00018835,2]
[370021291,1751837451111,-151.0,0.00018835,2]
[370021292,1751837451120,-192.5,0.00018848,2]
[370021293,1751837451131,-5034.6050196,0.000189,2]
[370021294,1751837451141,-216.294196,0.000189,2]
[370021295,1751837451151,-216.294196,0.000189,2]
[370021296,1751837451160,-151.0,0.000189,2]
[370021297,1751837451170,-151.0,0.000189,2]
[370021298,1751837451179,-151.0,0.000189,2]
[370021299,1751837451194,-500.0,0.00018913,2]
[370021300,1751837451203,-192.5,0.00018931,2]
[370021301,1751837451213,-500.0,0.00018942,2]
[370021302,1751837451223,-2271.5339855,0.0001896,2]
[370021303,1751837451235,-109023.429376,0.00018998,2]
[370021304,1751837451244,-151.0,0.00018998,2]
[370021305,1751837451253,-1719.67354647,0.00019,2]
[370021306,1751837451374,-21695.36692212,0.00019,2]
[370021307,1751837451384,-7718.2999971,0.00019003,2]
[370021308,1751837451394,-151.0,0.00019004,2]
[370021309,1751837451403,-185.62746866,0.0001901,2]
[370021310,1751837451412,-192.5,0.00019015,2]
[370021311,1751837451422,-814.03,0.00019029,2]
[370021312,1751837451431,-1103.34,0.0001903,2]
[370021313,1751837451441,-1231.84,0.0001903,2]
[370021314,1751837451451,-1125.19,0.0001903,2]
[370021315,1751837451460,-821.9,0.0001903,2]
[370021316,1751837451470,-1326.05,0.0001903,2]
[370021317,1751837451479,-808.73,0.0001903,2]
[370021318,1751837451488,-460.0,0.0001903,2]
[370021319,1751837451497,-741.42,0.0001903,2]
[370021320,1751837451507,-151.0,0.00019031,2]
[370021321,1751837451516,-604.05472,0.00019031,2]
[370021322,1751837451526,-604.05472,0.00019031,2]
[370021323,1751837451535,-460.0,0.00019031,2]
[370021324,1751837451545,-971.89,0.00019031,2]
[370021325,1751837451555,-1323.23,0.00019031,2]
[370021326,1751837451566,-460.0,0.00019031,2]
[370021327,1751837451576,-460.0,0.00019032,2]
[370021328,1751837451587,-460.0,0.00019032,2]
[370021329,1751837451597,-201.220787,0.00019032,2]
[370021330,1751837451610,-201.220787,0.00019032,2]
[370021331,1751837451620,-460.0,0.00019032,2]
[370021332,1751837451631,-372.54104,0.00019032,2]
[370021333,1751837451640,-372.54104,0.00019032,2]
[370021334,1751837451650,-245.07383,0.00019032,2]
[370021335,1751837451659,-245.07383,0.00019032,2]
[370021336,1751837451669,-460.0,0.00019032,2]
[370021337,1751837451679,-1339.21,0.00019032,2]
[370021338,1751837451688,-460.0,0.00019032,2]
[370021339,1751837451698,-1901.18,0.00019032,2]
[370021340,1751837451707,-460.0,0.00019032,2]
[370021341,1751837451717,-460.0,0.00019032,2]
[370021342,1751837451726,-476.37,0.00019032,2]
[370021343,1751837451736,-2242.92,0.00019032,2]
[370021344,1751837451745,-511.85,0.00019032,2]
[370021345,1751837451755,-604.16,0.00019032,2]
[370021346,1751837451765,-455.03,0.00019032,2]
[370021347,1751837451775,-727.43,0.00019032,2]
[370021348,1751837451785,-151.0,0.00019033,2]
[370021349,1751837451794,-151.0,0.00019033,2]
[370021350,1751837451804,-287.738569,0.00019033,2]
[370021351,1751837451813,-151.0,0.00019033,2]
[370021352,1751837451823,-151.0,0.00019033,2]
[370021353,1751837451833,-192.5,0.00019099,2]
[370021354,1751837451842,-2290.60891294,0.0001914,2]
[370021355,1751837451856,-2346.112771,0.00019163,2]
[370021356,1751837451866,-666.0,0.00019178,2]
[370021357,1751837451875,-829.733406,0.00019178,2]
[370021358,1751837451884,-151.0,0.00019178,2]
[370021359,1751837451894,-151.0,0.00019178,2]
[370021360,1751837451904,-151.0,0.00019178,2]
[370021361,1751837451913,-151.0,0.00019178,2]
[370021362,1751837451923,-192.5,0.00019183,2]
[370021363,1751837451933,-671.047,0.00019205,2]
[370021364,1751837451943,-192.5,0.00019267,2]
[370021365,1751837451952,-151.0,0.00019279,2]
[370021366,1751837451961,-151.0,0.00019279,2]
[370021367,1751837451971,-151.0,0.00019279,2]
[370021368,1751837451980,-151.0,0.00019279,2]
[370021369,1751837452115,-151.0,0.00019279,2]
[370021370,1751837452124,-7718.2999971,0.00019279,2]
[370021371,1751837452133,-151.0,0.00019288,2]
[370021372,1751837452143,-540.955948,0.00019288,2]
[370021373,1751837452153,-500.0,0.00019288,2]
[370021374,1751837452162,-151.0,0.00019288,2]
[370021375,1751837452172,-540.955948,0.00019288,2]
[370021376,1751837452182,-151.0,0.00019288,2]
[370021378,1751837452196,-151.0,0.00019288,2]
[370021379,1751837452205,-151.0,0.00019288,2]
[370021380,1751837452215,-151.0,0.00019288,2]
[370021381,1751837452225,-151.0,0.00019288,2]
[370021382,1751837452236,-245.11139049,0.00019288,2]
[370021383,1751837452246,-500.0,0.00019288,2]
[370021384,1751837452257,-151.0,0.00019288,2]
[370021385,1751837452266,-151.0,0.00019288,2]
[370021386,1751837452276,-151.0,0.00019288,2]
[370021387,1751837452286,-151.0,0.00019288,2]
[370021388,1751837452296,-151.0,0.00019288,2]
[370021389,1751837452306,-151.0,0.00019288,2]
[370021390,1751837452315,-151.0,0.00019288,2]
[370021391,1751837452325,-151.0,0.00019288,2]
[370021392,1751837452334,-151.0,0.00019288,2]
[370021393,1751837452343,-151.0,0.00019288,2]
[370021394,1751837452358,-151.0,0.00019288,2]
[370021395,1751837452368,-151.17801057,0.00019288,2]
[370021396,1751837452377,-500.0,0.00019288,2]
[370021397,1751837452387,-151.0,0.00019288,2]
[370021398,1751837452397,-151.0,0.00019288,2]
[370021399,1751837452406,-151.0,0.00019288,2]
[370021400,1751837452415,-151.0,0.00019288,2]
[370021401,1751837452425,-151.0,0.00019288,2]
[370021402,1751837452435,-151.0,0.00019288,2]
[370021403,1751837452444,-151.0,0.00019288,2]
[370021404,1751837452453,-151.0,0.00019288,2]
[370021405,1751837452463,-151.0,0.00019288,2]
[370021406,1751837452472,-151.0,0.00019288,2]
[370021407,1751837452482,-151.0675331,0.00019288,2]
[370021408,1751837452491,-814.03,0.00019303,2]
[370021409,1751837452500,-1103.34,0.00019304,2]
[370021410,1751837452510,-1231.84,0.00019304,2]
[370021411,1751837452519,-1125.19,0.00019304,2]
[370021412,1751837452529,-821.9,0.00019304,2]
[370021413,1751837452539,-1326.05,0.00019304,2]
[370021414,1751837452548,-808.73,0.00019304,2]
[370021415,1751837452557,-460.0,0.00019304,2]
[370021416,1751837452567,-741.42,0.00019304,2]
[370021417,1751837452576,-460.0,0.00019305,2]
[370021418,1751837452585,-971.89,0.00019305,2]
[370021419,1751837452595,-1323.23,0.00019305,2]
[370021420,1751837452609,-460.0,0.00019305,2]
[370021421,1751837452619,-460.0,0.00019306,2]
[370021422,1751837452628,-460.0,0.00019306,2]
[370021423,1751837452637,-460.0,0.00019306,2]
[370021424,1751837452647,-460.0,0.00019306,2]
[370021425,1751837452656,-1339.21,0.00019306,2]
[370021426,1751837452665,-216.294196,0.00019306,2]
[370021427,1751837452674,-216.294196,0.00019306,2]
[370021428,1751837452684,-573.24784624,0.00019306,2]
[370021429,1751837452693,-151.0,0.00019306,2]
[370021430,1751837452703,-151.0,0.00019306,2]
[370021431,1751837452712,-1901.18,0.00019306,2]
[370021432,1751837452722,-460.0,0.00019306,2]
[370021433,1751837452731,-460.0,0.00019306,2]
[370021434,1751837452741,-151.0,0.00019306,2]